bitfinex/quotes_BTCUSD_20260125
["timestamp","ask_amount","ask_price","bid_price","bid_amount"]
[1769321103703,0.01124935,88894.0,88887.0,0.00043935]
[1769321104042,0.86232837,88896.0,88887.0,0.00043935]
[1769321107477,0.36173024,88896.0,88887.0,0.00043935]
[1769321108011,0.01124884,88898.0,88887.0,0.00043935]
[1769321108418,0.30150634,88900.0,88887.0,0.00043935]
[1769321108616,0.01124872,88899.0,88887.0,0.00043935]
[1769321109187,0.01124884,88898.0,88887.0,0.00043935]
[1769321109428,0.01124872,88899.0,88887.0,0.00043935]
[1769321110557,0.01124884,88898.0,88887.0,0.00043935]
[1769321110939,0.29025775,88900.0,88887.0,0.00043935]
[1769321111136,0.29025775,88900.0,88887.0,0.82510646]
[1769321111885,0.29025775,88900.0,88887.0,0.00043935]
[1769321112085,0.17284,88905.0,88887.0,0.00043935]
[1769321112543,0.18408796,88905.0,88887.0,0.00043935]
[1769321112774,0.18408796,88905.0,88888.0,0.47749377]
[1769321112991,0.18408796,88905.0,88890.0,0.48603272]
[1769321113206,0.29025775,88900.0,88890.0,0.83288608]
[1769321122800,0.29025775,88900.0,88887.0,0.00043935]
[1769321123120,0.30150634,88900.0,88887.0,0.00043935]
[1769321123756,0.01124872,88899.0,88887.0,0.00043935]
[1769321123934,0.01124884,88898.0,88887.0,0.00043935]
[1769321124131,0.3505663,88898.0,88887.0,0.00043935]
[1769321124681,0.33931746,88898.0,88887.0,0.00043935]
[1769321127196,0.3505663,88898.0,88887.0,0.00043935]
[1769321127363,0.33931746,88898.0,88887.0,0.00043935]
[1769321128128,0.3505663,88898.0,88887.0,0.00043935]
[1769321128764,0.33931746,88898.0,88887.0,0.00043935]
[1769321129163,0.3505663,88898.0,88887.0,0.00043935]
[1769321129766,0.33931746,88898.0,88887.0,0.00043935]
[1769321130264,0.3505663,88898.0,88887.0,0.00043935]
[1769321130476,0.33931746,88898.0,88887.0,0.00043935]
[1769321132445,0.52397263,88899.0,88887.0,0.00043935]
[1769321132646,0.51272391,88899.0,88887.0,0.00043935]
[1769321133198,0.52397263,88899.0,88887.0,0.00043935]
[1769321133393,0.350053,88899.0,88887.0,0.00043935]
[1769321134754,0.33880428,88899.0,88887.0,0.00043935]
[1769321135388,0.33880428,88899.0,88892.0,0.0176]
[1769321135578,0.33880428,88899.0,88892.0,0.01678235]
[1769321135776,0.33880428,88899.0,88892.0,0.01530995]
[1769321136003,0.33880428,88899.0,88892.0,0.01416419]
[1769321136176,0.11238447,88898.0,88892.0,0.01301794]
[1769321136481,0.33880428,88899.0,88892.0,0.01285415]
[1769321136908,0.30150634,88900.0,88892.0,0.01285415]
[1769321137106,0.11238449,88899.0,88892.0,0.01285415]
[1769321138686,0.01124922,88895.0,88892.0,0.00681888]
[1769321138893,0.06749541,88895.0,88892.0,5.328e-05]
[1769321139319,0.01124897,88897.0,88883.0,0.0002]
[1769321139320,0.0112491,88896.0,88883.0,0.0002]
[1769321139648,0.0112491,88896.0,88883.0,5.866e-05]
[1769321140052,0.01124897,88897.0,88883.0,5.866e-05]
[1769321140433,0.01124947,88893.0,88883.0,5.866e-05]
[1769321140656,0.0112496,88892.0,88883.0,5.866e-05]
[1769321141369,0.01124973,88891.0,88883.0,5.866e-05]
[1769321143674,0.29025775,88893.0,88883.0,5.866e-05]
[1769321143883,0.30150722,88893.0,88883.0,5.866e-05]
[1769321144467,0.29025775,88893.0,88883.0,5.866e-05]
[1769321144995,0.11833325,88893.0,88883.0,5.866e-05]
[1769321145601,0.34702354,88894.0,88883.0,5.866e-05]
[1769321145842,0.0112491,88896.0,88883.0,5.866e-05]
[1769321148515,0.29025775,88893.0,88883.0,5.866e-05]
[1769321150627,0.09774854,88893.0,88883.0,5.866e-05]
[1769321153007,0.29041345,88890.0,88877.0,0.47021962]
[1769321153217,0.29049894,88890.0,88877.0,0.47021962]
[1769321153542,0.01124998,88889.0,88877.0,0.47021962]
[1769321153733,0.30174879,88890.0,88877.0,0.47021962]
[1769321154197,0.01124998,88889.0,88877.0,0.47021962]
[1769321154400,0.01125011,88888.0,88877.0,0.47021962]
[1769321154647,0.01124998,88889.0,88877.0,0.47021962]
[1769321154854,0.01125011,88888.0,88877.0,0.0002]
[1769321155258,0.01124998,88889.0,88877.0,0.0002]
[1769321156278,0.29049894,88890.0,88877.0,0.0002]
[1769321156636,0.30174879,88890.0,88877.0,0.0002]
[1769321157464,0.29049894,88890.0,88877.0,0.0002]
[1769321161670,0.30174879,88890.0,88877.0,0.0002]
[1769321161830,0.29049894,88890.0,88877.0,0.0002]
[1769321162030,0.30174879,88890.0,88878.0,0.35515066]
[1769321162229,0.01124998,88889.0,88878.0,0.35515066]
[1769321162475,0.29049894,88890.0,88878.0,0.35515066]
[1769321162684,0.30174879,88890.0,88878.0,0.35515066]
[1769321162833,0.29049894,88890.0,88878.0,0.35515066]
[1769321163362,0.30174879,88890.0,88878.0,0.0003485]
[1769321164821,0.29049894,88890.0,88878.0,0.0003485]
[1769321167078,0.30174879,88890.0,88878.0,0.0003485]
[1769321167289,0.30174879,88890.0,88874.0,0.0002]
[1769321167290,0.30174879,88890.0,88839.0,0.34235757]
[1769321167291,0.54346532,88861.0,88839.0,0.34235757]
[1769321167494,0.33152667,88863.0,88833.0,0.0002396]
[1769321167495,0.05626854,88860.0,88843.0,0.34235757]
[1769321167701,0.01125416,88856.0,88846.0,0.34235757]
[1769321167909,0.01125403,88857.0,88846.0,0.34235757]
[1769321168117,0.01125454,88853.0,88846.0,0.34235757]
[1769321168321,0.01125492,88850.0,88846.0,0.33964477]
[1769321168507,0.01125505,88849.0,88846.0,0.33978745]
[1769321168748,0.01125492,88850.0,88846.0,0.33978745]
[1769321168966,0.01125505,88849.0,88846.0,0.33978745]
[1769321169385,0.01125492,88850.0,88846.0,0.33978745]
[1769321169590,0.01125505,88849.0,88846.0,0.33978745]
[1769321169795,0.01125492,88850.0,88846.0,0.33978745]
[1769321171038,0.01125505,88849.0,88846.0,0.33978745]
[1769321171708,0.01125479,88851.0,88846.0,0.33978745]
[1769321171911,0.01125492,88850.0,88846.0,0.33978745]
[1769321172665,0.01125505,88849.0,88846.0,0.00014268]
[1769321173063,0.01125492,88850.0,88846.0,0.00014268]
[1769321173266,0.01125505,88849.0,88846.0,0.00014268]
[1769321173904,0.01125492,88850.0,88846.0,0.00014268]
[1769321174110,0.01125505,88849.0,88846.0,0.00014268]
[1769321174318,0.01125492,88850.0,88846.0,0.00014268]
[1769321174652,0.01125505,88849.0,88846.0,0.00014268]
[1769321175236,0.01125492,88850.0,88846.0,0.00014268]
[1769321175601,0.01125479,88851.0,88846.0,0.00014268]
[1769321176053,0.01125454,88853.0,88846.0,0.00014268]
[1769321177032,0.01125467,88852.0,88846.0,0.00014268]
[1769321177368,0.01125454,88853.0,88846.0,0.00014268]
[1769321177803,0.01125467,88852.0,88846.0,0.00014268]
[1769321178647,0.06752763,88853.0,88846.0,0.00014268]
[1769321179062,0.01125454,88853.0,88846.0,0.00014268]
[1769321179912,0.01125416,88856.0,88846.0,0.00014268]
[1769321180051,0.01125441,88854.0,88846.0,0.00014268]
[1769321180386,0.29041345,88860.0,88846.0,0.00014268]
[1769321180541,0.01125391,88858.0,88846.0,0.00014268]
[1769321180740,0.01125378,88859.0,88846.0,0.00014268]
[1769321181657,0.01125264,88868.0,88851.0,0.52199871]
[1769321181852,0.01125251,88869.0,88854.0,0.34649158]
[1769321182054,0.01125251,88869.0,88856.0,0.86849029]
[1769321182309,0.01125264,88868.0,88857.0,0.34649158]
[1769321182497,0.01125302,88865.0,88857.0,0.34649158]
[1769321182679,0.06751705,88867.0,88857.0,0.34649158]
[1769321183642,0.01125327,88863.0,88857.0,0.34649158]
[1769321183822,0.01125315,88864.0,88857.0,0.34649158]
[1769321184122,0.01125302,88865.0,88857.0,0.34649158]
[1769321184336,0.01125289,88866.0,88857.0,0.34649158]
[1769321184855,0.01125365,88860.0,88846.0,0.00014268]
[1769321185125,0.01125391,88858.0,88846.0,0.00014268]
[1769321185712,0.01125378,88859.0,88846.0,0.00014268]
[1769321186079,0.01125391,88858.0,88846.0,0.00014268]
[1769321186569,0.01125378,88859.0,88846.0,0.00014268]
[1769321188825,0.01125391,88858.0,88846.0,0.00014268]
[1769321189621,0.01125403,88857.0,88846.0,0.00014268]
[1769321190157,0.01125391,88858.0,88846.0,0.00014268]
[1769321192585,0.01125429,88855.0,88844.0,0.03918268]
[1769321192787,0.01125403,88857.0,88844.0,0.03930576]
[1769321193268,0.01125416,88856.0,88844.0,0.03930576]
[1769321193469,0.01125403,88857.0,88844.0,0.03930576]
[1769321193669,0.01125416,88856.0,88844.0,0.03930576]
[1769321193881,0.01125403,88857.0,88844.0,0.03930576]
[1769321194075,0.01125416,88856.0,88844.0,0.03930576]
[1769321194733,0.01125429,88855.0,88844.0,0.03930576]
[1769321195085,0.01125416,88856.0,88844.0,0.03930576]
[1769321196050,0.01125403,88857.0,88844.0,0.03930576]
[1769321196237,0.12334918,88857.0,88844.0,0.03930576]
[1769321197049,0.01125416,88856.0,88844.0,0.03930576]
[1769321197249,0.01125429,88855.0,88844.0,0.03930576]
[1769321198437,0.12334931,88856.0,88844.0,0.03930576]
[1769321198646,0.11209515,88855.0,88844.0,0.03930576]
[1769321198838,0.11209515,88854.0,88844.0,0.03930576]
[1769321199035,0.11209515,88853.0,88844.0,0.03930576]
[1769321199254,0.11209515,88852.0,88844.0,0.03930576]
[1769321199434,0.11209515,88851.0,88844.0,0.03930576]
[1769321199637,0.11209515,88850.0,88845.0,0.01110054]
[1769321199842,0.11209515,88849.0,88845.0,0.01110054]
[1769321200024,0.11209515,88849.0,88844.0,0.03930576]
[1769321200025,0.12335032,88848.0,88844.0,0.03930576]
[1769321200225,0.11209515,88847.0,88844.0,0.01132571]
[1769321200426,0.12335045,88847.0,88844.0,0.00014067]
[1769321200630,0.05627732,88846.0,88844.0,7.034e-05]
[1769321200866,0.11209515,88845.0,88844.0,7.034e-05]
[1769321201389,0.11221602,88845.0,88844.0,7.034e-05]
[1769321201621,0.05627715,88846.0,88844.0,7.034e-05]
[1769321201824,0.11221602,88845.0,88844.0,7.034e-05]
[1769321202452,0.1684938,88845.0,88844.0,7.034e-05]
[1769321202654,1.05919144,88845.0,88844.0,7.034e-05]
[1769321203088,1.06019144,88845.0,88844.0,7.034e-05]
[1769321203418,1.05919144,88845.0,88844.0,7.034e-05]
[1769321203604,0.06753534,88843.0,88837.0,0.04240077]
[1769321203803,0.12347195,88842.0,88837.0,0.04254341]
[1769321204459,0.01125606,88841.0,88837.0,0.04254341]
[1769321204882,0.12343047,88842.0,88837.0,0.04254341]
[1769321205120,0.01125606,88841.0,88837.0,0.04254341]
[1769321205289,0.01125581,88843.0,88837.0,0.04254341]
[1769321205496,0.1234188,88844.0,88837.0,0.04254341]
[1769321205693,0.11216312,88844.0,88837.0,0.04254341]
[1769321205864,0.1234188,88844.0,88837.0,0.04254341]
[1769321206115,0.11216312,88844.0,88837.0,0.04254341]
[1769321206521,0.11216312,88843.0,88837.0,0.04254341]
[1769321206726,0.01125517,88848.0,88837.0,0.04254341]
[1769321207395,0.0112553,88847.0,88837.0,0.04254341]
[1769321207996,0.01125555,88845.0,88837.0,0.04254341]
[1769321208656,0.12340728,88846.0,88837.0,0.04254341]
[1769321210855,0.1234074,88845.0,88837.0,0.04254341]
[1769321211184,0.11215185,88845.0,88837.0,0.04254341]
[1769321211296,0.01125543,88846.0,88837.0,0.04254341]
[1769321211702,0.01125555,88845.0,88837.0,0.04254341]
[1769321211912,0.12336891,88846.0,88837.0,0.04254341]
[1769321212110,0.11211348,88845.0,88837.0,0.04254341]
[1769321212362,0.01125543,88846.0,88837.0,0.00014264]
[1769321212663,0.29041345,88847.0,88819.0,0.0002357]
[1769321212874,0.29041345,88847.0,88768.0,0.0108679]
[1769321212875,0.01125986,88811.0,88791.0,0.0002357]
[1769321213029,0.01125986,88811.0,88768.0,0.0108679]
[1769321213031,0.01125986,88811.0,88768.0,0.0039466]
[1769321213032,0.02082062,88789.0,88768.0,0.0039466]
[1769321213231,0.28111048,88780.0,88769.0,0.86702112]
[1769321213433,0.29111048,88780.0,88769.0,0.52850573]
[1769321213576,0.29111048,88780.0,88768.0,0.0039466]
[1769321213577,0.01126392,88779.0,88768.0,0.0039466]
[1769321214003,0.01126341,88783.0,88768.0,0.0039466]
[1769321214231,0.01126354,88782.0,88768.0,0.53245233]
[1769321214447,0.0117381,88782.0,88768.0,0.53245233]
[1769321215073,0.00047456,88782.0,88768.0,0.53245233]
[1769321215284,0.00047456,88782.0,88763.0,0.137066]
[1769321215285,0.13446056,88775.0,88763.0,0.137066]
[1769321215485,0.01126519,88769.0,88763.0,0.13754056]
[1769321215686,0.11907786,88760.0,88753.0,0.00024645]
[1769321215889,0.11875387,88756.0,88753.0,0.00024645]
[1769321216090,0.11875387,88756.0,88750.0,0.01466969]
[1769321216091,0.11850989,88754.0,88750.0,0.01466969]
[1769321216295,0.11850989,88754.0,88730.0,0.0002568]
[1769321216296,0.35923784,88752.0,88738.0,0.04504]
[1769321216512,0.37050519,88752.0,88738.0,0.04504]
[1769321216714,0.01126709,88754.0,88738.0,0.04504]
[1769321217042,0.01126709,88754.0,88734.0,0.52850573]
[1769321217259,0.01126709,88754.0,88723.0,0.01127103]
[1769321217260,0.01126735,88752.0,88728.0,0.52850573]
[1769321217462,0.29111048,88750.0,88738.0,0.04504]
[1769321217686,0.65034832,88750.0,88738.0,0.04504]
[1769321217875,0.65034832,88750.0,88738.0,0.04004]
[1769321218120,0.29158475,88760.0,88738.0,0.04004]
[1769321218334,0.35923784,88756.0,88739.0,0.00065463]
[1769321218527,0.35923784,88754.0,88739.0,0.00065463]
[1769321218895,0.29158475,88760.0,88741.0,0.01126874]
[1769321218896,0.00047427,88760.0,88741.0,0.01126874]
[1769321219096,0.00047427,88760.0,88749.0,0.52850573]
[1769321219298,0.30237681,88760.0,88743.0,0.33851539]
[1769321219663,0.10392239,88759.0,88740.0,0.52850573]
[1769321219865,0.10392239,88757.0,88741.0,0.00065603]
[1769321220046,0.35923784,88756.0,88741.0,0.00065603]
[1769321220816,0.35923784,88756.0,88740.0,0.52850573]
[1769321221015,0.35923784,88756.0,88741.0,0.00154318]
[1769321221665,0.35923784,88756.0,88741.0,0.00807083]
[1769321223414,0.01126557,88766.0,88743.0,0.27862677]
[1769321223817,0.29710002,88761.0,88744.0,0.60381249]
[1769321224041,0.40102241,88761.0,88744.0,0.59574194]
[1769321224412,0.10392239,88761.0,88744.0,0.59574194]
[1769321224575,0.29710002,88760.0,88744.0,0.59574194]
[1769321225187,0.40102241,88760.0,88744.0,0.59574194]
[1769321226794,0.00879417,88759.0,88744.0,0.59574194]
[1769321228485,0.00879417,88764.0,88746.0,0.59574194]
[1769321228658,0.00879417,88764.0,88747.0,0.27862677]
[1769321228862,0.10392239,88765.0,88747.0,0.27862677]
[1769321229074,0.40981658,88764.0,88746.0,0.59574194]
[1769321229284,0.29710002,88764.0,88746.0,0.59574194]
[1769321229473,0.29813925,88764.0,88746.0,0.59574194]
[1769321230087,0.01126468,88773.0,88747.0,0.27862677]
[1769321230301,0.13446056,88769.0,88754.0,0.27862677]
[1769321230486,0.13446056,88769.0,88757.0,0.59574194]
[1769321230688,0.13446056,88769.0,88757.0,0.87436871]
[1769321231648,0.00879417,88774.0,88757.0,0.87436871]
[1769321231787,0.13446056,88769.0,88757.0,0.87436871]
[1769321232378,0.01126367,88781.0,88757.0,0.04508]
[1769321232591,0.01126405,88778.0,88757.0,0.04508]
[1769321232805,0.13446056,88769.0,88757.0,0.04508]
[1769321233039,0.13446056,88769.0,88758.0,0.7562958]
[1769321234735,0.02005847,88776.0,88761.0,0.57599755]
[1769321234941,0.0200586,88775.0,88760.0,0.18029825]
[1769321235158,0.18484727,88775.0,88757.0,0.04508]
[1769321235386,0.18731765,88774.0,88757.0,0.04508]
[1769321235596,0.00879417,88773.0,88757.0,0.04508]
[1769321236512,0.0087363,88773.0,88757.0,0.04508]
[1769321236925,0.0087363,88773.0,88757.0,0.62107755]
[1769321239135,0.1760531,88774.0,88757.0,0.62107755]
[1769321241319,0.11153976,88773.0,88757.0,0.62107755]
[1769321241533,0.12027606,88773.0,88757.0,0.62107755]
[1769321242323,0.209494,88773.0,88757.0,0.62107755]
[1769321243292,0.08921794,88770.0,88757.0,0.62107755]
[1769321243483,0.0087363,88769.0,88757.0,0.62107755]
[1769321244018,0.0087363,88769.0,88758.0,0.00790678]
[1769321244489,0.11153976,88768.0,88758.0,0.00790678]
[1769321244690,0.01126354,88782.0,88758.0,0.0177738]
[1769321244851,0.30237427,88780.0,88760.0,0.57599755]
[1769321245056,0.01126392,88779.0,88762.0,0.57599755]
[1769321245425,0.01126405,88778.0,88762.0,0.57599755]
[1769321245840,0.18731715,88778.0,88762.0,0.57599755]
[1769321246511,0.01126417,88777.0,88762.0,0.57599755]
[1769321246697,0.18731715,88778.0,88762.0,0.57599755]
[1769321246900,0.1760531,88778.0,88762.0,0.57599755]
[1769321247678,0.1760531,88778.0,88763.0,0.00464501]
[1769321248662,0.01145812,88778.0,88763.0,0.00464501]
[1769321248985,0.01126392,88779.0,88764.0,0.18029825]
[1769321249402,0.90543722,88780.0,88764.0,0.18029825]
[1769321249704,0.01126392,88779.0,88764.0,0.18029825]
[1769321250082,0.90543722,88780.0,88764.0,0.18029825]
[1769321250486,0.01126405,88778.0,88764.0,0.18029825]
[1769321250690,0.30237427,88780.0,88764.0,0.57599755]
[1769321250887,0.29111048,88780.0,88765.0,0.18029825]
[1769321251184,0.29111048,88780.0,88757.0,0.04508]
[1769321251185,0.13446056,88779.0,88768.0,0.18029825]
[1769321252344,0.29111048,88780.0,88768.0,0.18029825]
[1769321252492,0.13446056,88779.0,88768.0,0.18029825]
[1769321254160,0.14590625,88784.0,88768.0,0.18029825]
[1769321254291,0.14590625,88784.0,88768.0,0.59209555]
[1769321254498,0.14590625,88784.0,88769.0,0.05635819]
[1769321254737,0.13464296,88784.0,88769.0,0.05635819]
[1769321255544,0.13464296,88784.0,88771.0,0.05410957]
[1769321256613,0.13446056,88783.0,88771.0,0.05410957]
[1769321256781,0.13446056,88783.0,88771.0,0.05416843]
[1769321257346,0.0001824,88784.0,88771.0,0.05416843]
[1769321257548,0.13446056,88782.0,88773.0,0.0518608]
[1769321258346,0.0001824,88784.0,88773.0,0.0518608]
[1769321258551,0.0001824,88784.0,88775.0,0.0518608]
[1769321259002,0.0001824,88784.0,88776.0,0.59209555]
[1769321259221,0.01126189,88795.0,88778.0,0.0518408]
[1769321259360,0.11210237,88796.0,88780.0,0.59209555]
[1769321259562,0.11210237,88796.0,88781.0,0.0518408]
[1769321259760,0.11210237,88796.0,88780.0,0.59209555]
[1769321259761,0.24656293,88796.0,88782.0,0.04959205]
[1769321260015,0.30237174,88800.0,88783.0,0.04959205]
[1769321260149,0.11209268,88799.0,88783.0,0.04959205]
[1769321260801,0.60961966,88795.0,88783.0,0.04959205]
[1769321261121,0.62088155,88795.0,88783.0,0.04959205]
[1769321261679,0.01126214,88793.0,88783.0,0.04959205]
[1769321263131,0.01126202,88794.0,88783.0,0.04959205]
[1769321263334,0.01126113,88801.0,88783.0,0.04959205]
[1769321263673,0.13446056,88799.0,88783.0,0.04959205]
[1769321266587,0.01126024,88808.0,88786.0,0.59209555]
[1769321266785,0.13446056,88806.0,88789.0,0.04579035]
[1769321266993,0.13446056,88806.0,88790.0,0.04579035]
[1769321268757,0.1457208,88808.0,88792.0,0.04579035]
[1769321269516,0.1457208,88808.0,88794.0,0.04579035]
[1769321269517,0.13446056,88808.0,88794.0,0.04579035]
[1769321269983,0.0112605,88806.0,88794.0,0.04579035]
[1769321270783,0.01126062,88805.0,88793.0,0.59209555]
[1769321270984,0.0112605,88806.0,88793.0,0.6378859]
[1769321271305,0.13446056,88807.0,88793.0,0.59209555]
[1769321271509,0.14572093,88807.0,88793.0,0.59209555]
[1769321271673,0.13446056,88807.0,88793.0,0.59209555]
[1769321273423,0.000408,88809.0,88794.0,0.04579035]
[1769321273624,0.13446056,88807.0,88795.0,0.59209555]
[1769321274045,0.000408,88809.0,88790.0,0.29111048]
[1769321274267,0.0562975,88814.0,88786.0,0.04508]
[1769321274268,0.19126875,88819.0,88800.0,0.29111048]
[1769321274578,0.0112591,88817.0,88799.0,0.6378859]
[1769321274778,0.01125897,88818.0,88800.0,0.04579035]
[1769321275083,0.0112591,88817.0,88801.0,0.59209555]
[1769321275426,0.0112591,88817.0,88801.0,0.59215441]
[1769321275955,0.01125897,88818.0,88801.0,0.59215441]
[1769321276487,0.0112591,88817.0,88801.0,0.59215441]
[1769321276713,0.01125897,88818.0,88801.0,0.59215441]
[1769321276934,0.01125923,88816.0,88801.0,0.59215441]
[1769321277347,0.01,88801.0,88781.0,0.04579035]
[1769321277548,0.01,88801.0,88780.0,0.29089762]
[1769321277549,0.01014231,88801.0,88795.0,0.03938212]
[1769321277886,0.01014231,88801.0,88789.0,0.04508]
[1769321277887,0.02140344,88801.0,88789.0,0.04508]
[1769321278426,0.01126151,88798.0,88772.0,0.01126481]
[1769321278572,0.01126265,88789.0,88775.0,0.04579035]
[1769321278771,0.0112624,88791.0,88775.0,0.04579035]
[1769321278975,0.0112624,88791.0,88775.0,0.6378859]
[1769321279203,0.01126227,88792.0,88775.0,0.6378859]
[1769321279399,0.01126227,88792.0,88776.0,0.04579035]
[1769321279623,0.01126227,88792.0,88776.0,0.6378859]
[1769321279999,0.01126252,88790.0,88774.0,0.04508]
[1769321280186,0.04554934,88790.0,88774.0,0.04508]
[1769321281188,0.05681186,88790.0,88774.0,0.04508]
[1769321282046,0.01126278,88788.0,88774.0,0.04508]
[1769321282469,0.01126291,88787.0,88774.0,0.04508]
[1769321282674,0.01126303,88786.0,88774.0,0.04508]
[1769321283215,0.01126316,88785.0,88774.0,0.04508]
[1769321283349,0.01126303,88786.0,88774.0,0.04508]
[1769321284016,0.19127242,88790.0,88774.0,0.04508]
[1769321284844,0.1800099,88790.0,88774.0,0.04508]
[1769321285514,0.19127242,88790.0,88774.0,0.04508]
[1769321285717,0.01126291,88787.0,88774.0,0.04508]
[1769321286102,0.01126303,88786.0,88774.0,0.04508]
[1769321286497,0.01126278,88788.0,88774.0,0.04508]
[1769321287284,0.01126291,88787.0,88774.0,0.04508]
[1769321287632,0.01126278,88788.0,88774.0,0.04508]
[1769321287923,0.01126278,88788.0,88773.0,0.60757017]
[1769321288373,0.5384828,88790.0,88773.0,0.60757017]
[1769321288374,0.01126265,88789.0,88773.0,0.60757017]
[1769321288575,0.19127242,88790.0,88773.0,0.60757017]
[1769321288846,0.1800099,88790.0,88773.0,0.60757017]
[1769321289432,0.48217004,88790.0,88773.0,0.60757017]
[1769321289631,0.01126265,88789.0,88773.0,0.60757017]
[1769321289829,0.48217004,88790.0,88773.0,0.60757017]
[1769321290038,0.01126265,88789.0,88773.0,0.60757017]
[1769321290977,0.88827761,88790.0,88773.0,0.60757017]
[1769321291176,0.59737999,88790.0,88773.0,0.60757017]
[1769321291901,0.01126278,88788.0,88773.0,0.60757017]
[1769321292100,0.01126291,88787.0,88773.0,0.65276007]
[1769321292355,0.01126265,88789.0,88773.0,0.65276007]
[1769321292533,0.46291943,88790.0,88773.0,0.65276007]
[1769321292721,0.01126265,88789.0,88773.0,0.65276007]
[1769321292921,0.46291943,88790.0,88773.0,0.65276007]
[1769321293145,0.41737009,88790.0,88773.0,0.65635761]
[1769321293713,0.41737009,88790.0,88774.0,0.04878744]
[1769321293936,0.40610757,88790.0,88774.0,0.04878744]
[1769321294467,0.01126265,88789.0,88774.0,0.04878744]
[1769321294670,0.40610757,88790.0,88774.0,0.04878744]
[1769321294871,0.41737009,88790.0,88774.0,0.04878744]
[1769321295067,0.01126265,88789.0,88774.0,0.04878744]
[1769321295297,0.41737009,88790.0,88774.0,0.04878744]
[1769321296185,0.40610757,88790.0,88774.0,0.04878744]
[1769321296392,0.41737009,88790.0,88774.0,0.04878744]
[1769321296594,0.40610757,88790.0,88774.0,0.04763991]
[1769321297173,0.41737009,88790.0,88774.0,0.04763991]
[1769321297376,0.40610757,88790.0,88774.0,0.04763991]
[1769321298140,0.41737009,88790.0,88774.0,0.04763991]
[1769321298269,0.40610757,88790.0,88774.0,0.04763991]
[1769321298472,0.01126265,88789.0,88774.0,0.04763991]
[1769321298777,0.01126278,88788.0,88774.0,0.04763991]
[1769321299100,0.21882603,88789.0,88774.0,0.04763991]
[1769321299282,0.23008868,88789.0,88774.0,0.04763991]
[1769321299480,0.01126278,88788.0,88774.0,0.04763991]
[1769321299685,0.23008868,88789.0,88774.0,0.04763991]
[1769321299889,0.22069884,88788.0,88774.0,0.04763991]
[1769321300111,0.01126291,88787.0,88774.0,0.04763991]
[1769321300310,0.22069884,88788.0,88774.0,0.04763991]
[1769321301048,0.01126265,88789.0,88774.0,0.04763991]
[1769321301241,0.0112624,88791.0,88774.0,0.04763991]
[1769321301477,0.01126252,88790.0,88774.0,0.04763991]
[1769321301643,0.29089762,88790.0,88774.0,0.04763991]
[1769321302747,0.23196111,88792.0,88774.0,0.04763991]
[1769321302931,0.0112624,88791.0,88774.0,0.04763991]
[1769321303135,0.23196111,88792.0,88774.0,0.04763991]
[1769321303342,0.28827294,88792.0,88774.0,0.04763991]
[1769321303547,0.14572308,88790.0,88774.0,0.04763991]
[1769321303758,0.01126265,88789.0,88774.0,0.04763991]
[1769321304268,0.01126278,88788.0,88774.0,0.04763991]
[1769321304496,0.01126265,88789.0,88774.0,0.04763991]
[1769321304653,0.01126278,88788.0,88774.0,0.04763991]
[1769321304858,0.49293336,88790.0,88758.0,0.57052708]
[1769321304859,0.01126481,88772.0,88758.0,0.57052708]
[1769321305080,0.01126481,88772.0,88759.0,0.04878744]
[1769321305081,0.29089762,88770.0,88759.0,0.04878744]
[1769321305235,0.01126494,88771.0,88759.0,0.04878744]
[1769321305444,0.01126506,88770.0,88759.0,0.04878744]
[1769321305643,0.01126494,88771.0,88759.0,0.04878744]
[1769321306084,0.0114072,88771.0,88759.0,0.04878744]
[1769321306393,0.01126506,88770.0,88759.0,0.04878744]
[1769321307389,0.01126519,88769.0,88759.0,0.04878744]
[1769321307737,0.01126506,88770.0,88759.0,0.04878744]
[1769321307934,0.01126519,88769.0,88759.0,0.04878744]
[1769321308138,0.01126532,88768.0,88759.0,0.04878744]
[1769321308345,0.01126532,88768.0,88753.0,0.61560708]
[1769321308346,0.01126544,88767.0,88758.0,0.04508]
[1769321308520,0.01126532,88768.0,88758.0,0.04508]
[1769321308725,0.01126532,88768.0,88757.0,0.04508]
[1769321308924,0.01126506,88770.0,88757.0,0.04508]
[1769321309508,0.35020635,88770.0,88756.0,0.0002892]
[1769321309708,0.37798886,88767.0,88756.0,0.0002892]
[1769321310517,0.01126519,88769.0,88756.0,0.0002892]
[1769321311045,0.38925443,88766.0,88756.0,0.0002892]
[1769321311247,0.61021549,88765.0,88756.0,0.0002892]
[1769321311970,0.01126582,88764.0,88756.0,0.0002892]
[1769321312188,0.61021549,88765.0,88756.0,0.0002892]
[1769321312394,0.01126582,88764.0,88756.0,0.0002892]
[1769321312775,0.61010628,88760.0,88756.0,0.0002892]
[1769321313381,0.29089762,88766.0,88736.0,0.06276137]
[1769321313382,0.0002892,88756.0,88741.0,0.04508]
[1769321313579,0.01126709,88754.0,88741.0,0.04508]
[1769321313800,0.66625443,88755.0,88741.0,0.04508]
[1769321314122,0.60991952,88755.0,88741.0,0.04508]
[1769321314440,0.01126709,88754.0,88741.0,0.04508]
[1769321314769,0.60991952,88755.0,88741.0,0.04508]
[1769321314968,0.59865255,88755.0,88741.0,0.04508]
[1769321315552,0.30216395,88760.0,88741.0,0.04508]
[1769321315743,0.01126417,88777.0,88750.0,0.29089762]
[1769321315894,0.29089762,88780.0,88750.0,0.29089762]
[1769321315895,0.65943102,88778.0,88754.0,0.04792739]
[1769321316234,0.59865255,88778.0,88760.0,0.29089762]
[1769321316441,0.01126354,88782.0,88763.0,0.63006952]
[1769321316600,0.29089762,88780.0,88764.0,0.04905396]
[1769321317062,0.60826774,88783.0,88765.0,0.63006952]
[1769321317257,0.01126316,88785.0,88768.0,0.04792739]
[1769321317458,0.01126341,88783.0,88769.0,0.0011265]
[1769321317617,0.30216141,88780.0,88769.0,0.0011265]
[1769321317825,0.01126392,88779.0,88761.0,0.09300739]
[1769321318018,0.35848041,88780.0,88761.0,0.09314965]
[1769321318220,0.01126405,88778.0,88761.0,0.09314965]
[1769321318433,0.01126405,88778.0,88761.0,0.72321917]
[1769321318635,0.65762586,88781.0,88761.0,0.72321917]
[1769321318636,0.29089762,88771.0,88761.0,0.00014226]
[1769321318887,0.04951442,88764.0,88748.0,0.04792739]
[1769321319194,0.01076608,88762.0,88748.0,0.04792739]
[1769321319651,0.66889487,88764.0,88748.0,0.04792739]
[1769321320125,0.01126595,88763.0,88748.0,0.04792739]
[1769321320324,0.0112662,88761.0,88748.0,0.04792739]
[1769321320525,0.01126608,88762.0,88748.0,0.04792739]
[1769321320726,0.01126633,88760.0,88748.0,0.04792739]
[1769321320922,0.01126595,88763.0,88748.0,0.04792739]
[1769321321331,0.66889487,88764.0,88748.0,0.04792739]
[1769321321530,0.65762905,88764.0,88748.0,0.04792739]
[1769321322108,0.66889487,88764.0,88748.0,0.67799691]
[1769321322734,0.01126595,88763.0,88748.0,0.67799691]
[1769321323098,0.66889487,88764.0,88748.0,0.67799691]
[1769321323287,0.00014263,88764.0,88748.0,0.63006952]
[1769321323470,0.00014263,88764.0,88751.0,0.04792739]
[1769321323668,0.00014263,88764.0,88752.0,0.67851232]
[1769321323856,0.00014263,88764.0,88752.0,0.67799691]
[1769321324053,0.23496942,88770.0,88752.0,0.67799691]